bitfinex/quotes_ETHUSD_20241216
["timestamp","ask_amount","ask_price","bid_price","bid_amount"]
[1734319659456,0.54051401,3956.2,3954.8,0.8299]
[1734319659961,2.52787,3955.9,3954.8,0.8299]
[1734319662573,2.52787,3955.9,3954.9,0.8075]
[1734319662994,0.54051401,3956.2,3954.9,0.8075]
[1734319663178,2.52808,3955.6,3954.9,0.8075]
[1734319663395,2.52793,3955.9,3954.9,0.8075]
[1734319663780,3.06821401,3956.2,3954.9,0.8075]
[1734319664481,2.52776,3956.1,3954.9,0.8075]
[1734319665074,0.54051401,3956.2,3954.9,0.8075]
[1734319665274,2.52781,3956.0,3954.9,0.8075]
[1734319665584,2.08094009,3956.3,3954.9,0.8075]
[1734319665787,2.52786,3956.0,3954.9,0.8075]
[1734319666711,2.08094009,3956.3,3955.0,0.809]
[1734319667398,2.528,3955.7,3955.0,0.809]
[1734319668234,2.5281,3955.6,3955.0,0.809]
[1734319668525,2.52817,3955.5,3955.0,0.809]
[1734319669514,2.5285,3955.0,3954.4,0.8128]
[1734319669813,2.08094009,3955.5,3954.4,0.8128]
[1734319670017,2.52852,3954.9,3954.4,0.8128]
[1734319671093,2.52838,3955.1,3954.4,0.8128]
[1734319671601,2.73627401,3955.4,3954.4,0.8128]
[1734319671602,2.52845,3955.0,3954.4,0.8128]
[1734319672694,2.73627401,3955.4,3954.4,0.8128]
[1734319672898,2.08094009,3955.1,3954.4,0.8128]
[1734319673220,2.52862,3954.8,3954.4,0.8128]
[1734319675206,2.52843,3955.1,3954.4,0.8128]
[1734319675624,0.48172141,3955.3,3954.4,0.8128]
[1734319675822,2.52825,3955.3,3954.4,0.8128]
[1734319677617,2.52839,3955.1,3954.4,0.8128]
[1734319677821,2.52846,3955.0,3954.4,0.8128]
[1734319677995,2.52852,3954.9,3954.4,0.8128]
[1734319678980,2.52825,3955.3,3954.4,0.8128]
[1734319679187,0.58615069,3955.2,3954.4,0.8128]
[1734319679415,2.52863,3954.7,3954.4,0.8128]
[1734319680121,2.52871,3954.6,3954.4,0.8128]
[1734319680424,2.52906,3954.1,3953.7,0.758]
[1734319680800,2.52889,3954.3,3953.7,0.758]
[1734319681123,2.52876,3954.5,3953.7,0.758]
[1734319681420,2.52889,3954.3,3953.7,0.758]
[1734319682488,2.08094009,3954.7,3953.7,0.758]
[1734319682709,0.31251629,3954.6,3953.7,0.758]
[1734319683249,2.52889,3954.3,3953.7,0.758]
[1734319683407,0.31251629,3954.6,3953.7,0.758]
[1734319683767,2.5289,3954.3,3953.7,0.758]
[1734319684224,1.04422281,3954.9,3953.7,0.758]
[1734319684422,0.20809401,3955.4,3953.1,1.3544633]
[1734319684423,1.04422281,3955.3,3953.9,0.7838]
[1734319684734,3.56342401,3955.4,3953.9,0.7838]
[1734319684735,2.52844,3955.1,3954.1,0.7838]
[1734319685240,2.73632401,3955.4,3954.2,0.7838]
[1734319685561,1.87132281,3955.7,3954.3,0.7838]
[1734319685778,2.52819,3955.4,3954.3,0.7838]
[1734319686367,2.08094009,3955.5,3954.3,0.7838]
[1734319686880,2.52846,3955.0,3954.3,0.7838]
[1734319687175,2.52818,3955.4,3954.3,0.7838]
[1734319687339,3.07180101,3955.4,3954.3,0.7838]
[1734319687679,2.52845,3955.0,3954.3,0.7838]
[1734319688013,2.08094009,3955.1,3954.3,0.7838]
[1734319688249,2.52865,3954.7,3954.3,0.7838]
[1734319688954,1.04422281,3955.5,3954.3,0.7838]
[1734319689152,2.52813,3955.5,3954.4,1.12286537]
[1734319689317,2.52813,3955.5,3954.5,0.8227]
[1734319690984,1.04422281,3955.8,3954.5,0.8227]
[1734319691187,2.52833,3955.2,3954.5,0.8227]
[1734319694191,2.08094009,3955.5,3954.5,0.8227]
[1734319694192,4.60910009,3955.5,3954.5,0.8227]
[1734319694402,2.08094009,3955.5,3954.5,0.8227]
[1734319694559,2.52819,3955.4,3954.5,0.8227]
[1734319694971,3.33116471,3955.7,3954.5,0.8227]
[1734319695173,0.18473375,3955.6,3954.5,0.8227]
[1734319695372,2.71282375,3955.6,3954.5,0.8227]
[1734319696772,0.80311471,3955.7,3954.5,0.8227]
[1734319696975,0.80311471,3955.7,3954.6,0.8261]
[1734319697276,2.52794,3955.8,3954.6,0.8261]
[1734319698517,2.52794,3955.8,3954.6,3.35479]
[1734319698813,1.56633422,3956.1,3954.8,2.52854]
[1734319698814,3.57202281,3956.1,3954.8,2.52854]
[1734319699011,0.86330958,3956.0,3954.9,0.7783]
[1734319701586,0.86330958,3956.0,3955.5,2.52808]
[1734319701789,3.64727431,3956.3,3955.6,0.8282]
[1734319701790,1.04422281,3956.3,3955.6,0.8282]
[1734319701994,1.04422281,3956.4,3955.6,0.8282]
[1734319702202,2.52747,3956.6,3955.6,0.8282]
[1734319702402,0.86350922,3956.5,3955.6,0.8282]
[1734319702928,3.39103922,3956.5,3955.6,0.8282]
[1734319703126,3.1251629,3956.7,3955.6,0.8282]
[1734319703127,2.52757,3956.4,3955.6,0.8282]
[1734319703293,2.52773,3956.2,3955.6,0.8282]
[1734319703612,2.52798,3955.8,3955.0,0.7589]
[1734319704513,2.528,3955.7,3955.0,0.7589]
[1734319705201,2.52809,3955.6,3955.0,0.7589]
[1734319707367,2.52778,3956.1,3955.0,0.7589]
[1734319707680,1.58560833,3956.0,3955.0,0.7589]
[1734319707996,0.72192771,3956.0,3955.0,0.7589]
[1734319708285,2.528,3955.7,3955.0,0.7589]
[1734319709517,0.72192771,3956.0,3955.0,0.7589]
[1734319709518,2.52806,3955.6,3955.0,0.7589]
[1734319709714,0.72192771,3956.0,3955.0,0.7589]
[1734319709715,0.7601,3955.8,3955.0,0.7589]
[1734319709916,2.52799,3955.7,3955.0,0.7589]
[1734319710061,2.52823,3955.4,3955.0,0.7589]
[1734319712609,2.52813,3955.5,3955.0,0.7589]
[1734319714460,2.08094009,3956.0,3955.0,0.7589]
[1734319714799,2.52796,3955.8,3955.0,0.7589]
[1734319715893,3.1251629,3956.1,3955.0,0.7589]
[1734319716079,2.52799,3955.8,3955.0,0.7589]
[1734319716281,2.52803,3955.7,3955.0,0.7589]
[1734319716593,2.52819,3955.4,3955.0,0.7589]
[1734319716760,2.781009,3955.4,3955.0,0.7589]
[1734319717492,1.04422281,3955.9,3955.0,0.7589]
[1734319717493,2.52803,3955.7,3955.0,0.7589]
[1734319717699,2.52804,3955.7,3955.0,0.7589]
[1734319718086,2.5278,3956.0,3955.0,0.7589]
[1734319718289,2.52811,3955.6,3955.0,0.7589]
[1734319718471,2.52813,3955.5,3955.0,0.7589]
[1734319719607,2.52826,3955.3,3955.0,0.7589]
[1734319719770,2.52838,3955.1,3954.3,0.7759]
[1734319719973,2.52865,3954.7,3954.3,0.7759]
[1734319720189,4.60919009,3955.3,3954.3,0.7759]
[1734319720190,2.52872,3954.6,3954.3,0.7759]
[1734319720775,2.52854,3954.9,3954.3,0.7759]
[1734319721176,2.5286,3954.8,3954.3,0.7759]
[1734319721792,2.52866,3954.7,3954.3,0.7759]
[1734319722002,2.52865,3954.7,3954.3,0.7759]
[1734319722338,2.5287,3954.6,3954.3,0.7759]
[1734319722613,0.28925401,3955.0,3954.3,0.7759]
[1734319722614,2.52853,3954.9,3954.3,0.7759]
[1734319722770,2.52857,3954.8,3954.3,0.7759]
[1734319724190,4.60925009,3955.3,3954.3,0.7759]
[1734319724524,3.67534864,3955.3,3954.3,0.7759]
[1734319724848,2.52831,3955.3,3954.3,0.7759]
[1734319725050,2.52813,3955.5,3954.4,0.7861]
[1734319725220,2.52799,3955.7,3954.5,0.7861]
[1734319725416,3.1251629,3955.9,3954.5,1.07215637]
[1734319725656,3.39159422,3955.8,3954.6,0.7674]
[1734319725806,2.52793,3955.8,3954.6,0.7674]
[1734319726442,2.08094009,3955.9,3954.6,0.7674]
[1734319726443,2.528,3955.7,3954.6,0.7674]
[1734319727433,2.528,3955.7,3954.6,3.29609]
[1734319727636,2.528,3955.7,3954.8,0.774]
[1734319728752,2.52812,3955.5,3954.8,0.774]
[1734319728964,2.75224486,3956.5,3955.6,0.774]
[1734319728965,1.04422281,3956.5,3955.6,0.774]
[1734319729171,2.14462543,3956.8,3955.7,0.774]
[1734319729172,1.04422281,3956.6,3955.7,0.774]
[1734319729451,4.1878486,3956.8,3955.7,0.774]
[1734319729667,4.6890088,3956.7,3955.7,0.774]
[1734319729811,0.86465952,3956.6,3955.7,0.774]
[1734319730011,1.36991633,3956.6,3955.7,0.774]
[1734319730253,3.03267681,3956.6,3955.7,0.774]
[1734319730618,2.08094009,3956.3,3955.7,0.774]
[1734319730840,2.52775,3956.1,3955.1,0.774]
[1734319731380,3.17614129,3956.1,3955.1,0.774]
[1734319732164,0.64839129,3956.1,3955.1,0.774]
[1734319732982,3.17615129,3956.1,3955.1,0.774]
[1734319733282,2.52789,3955.9,3955.1,0.774]
[1734319734083,2.528,3955.7,3955.1,0.774]
[1734319734451,2.52815,3955.5,3955.1,0.774]
[1734319737065,2.52815,3955.5,3954.4,1.37279663]
[1734319737266,2.52829,3955.3,3954.5,0.8112]
[1734319737473,2.52832,3955.2,3954.5,0.8112]
[1734319737692,0.252815,3955.4,3954.5,0.8112]
[1734319738009,0.31653551,3955.3,3954.5,0.8112]
[1734319738596,2.52844,3955.0,3954.5,0.8112]
[1734319739255,0.8316,3954.9,3954.1,0.8112]
[1734319739457,2.52868,3954.7,3954.1,0.8112]
[1734319739657,2.52871,3954.6,3954.1,0.8112]
[1734319739852,0.252871,3954.5,3954.1,0.8112]
[1734319740191,2.52876,3954.5,3954.1,0.8112]
[1734319740581,2.5286,3954.8,3954.1,0.8112]
[1734319740766,2.52879,3954.5,3954.1,0.8112]
[1734319740967,2.52883,3954.4,3954.1,0.8112]
[1734319742166,2.52871,3954.6,3954.1,0.8112]
[1734319742968,2.52882,3954.5,3953.5,0.8267]
[1734319743971,2.08094009,3954.7,3953.5,0.8267]
[1734319744173,2.5288,3954.5,3953.5,0.8267]
[1734319745710,0.46052822,3954.6,3953.5,0.8267]
[1734319746713,2.98922822,3954.6,3953.5,0.8267]
[1734319747077,0.46052822,3954.6,3953.5,0.8267]
[1734319748104,2.98923822,3954.6,3953.5,0.8267]
[1734319748379,0.50701783,3954.5,3953.5,0.8267]
[1734319750193,0.50701783,3954.5,3953.5,2.52939]
[1734319750413,0.50701783,3954.5,3953.6,0.8303]
[1734319750781,0.46052822,3954.6,3953.6,0.8303]
[1734319751620,2.52823,3955.4,3953.4,0.3184987]
[1734319751621,1.04422281,3955.6,3953.8,0.8303]
[1734319751815,5.6531529,3955.8,3954.6,0.8303]
[1734319752019,4.60893009,3955.8,3954.7,0.8303]
[1734319752182,2.08094009,3955.8,3954.8,0.8303]
[1734319752384,2.08094009,3955.8,3954.1,2.52897]
[1734319752385,3.57200281,3956.1,3954.9,3.3588]
[1734319752577,2.5279,3955.9,3954.9,0.8303]
[1734319753007,2.52793,3955.8,3954.9,0.8303]
[1734319753717,2.08094009,3955.6,3954.9,0.8303]
[1734319754110,4.60901009,3955.6,3954.9,0.8303]
[1734319754418,0.53906101,3955.5,3954.9,0.8303]
[1734319755521,2.08094009,3955.6,3954.9,0.8303]
[1734319756383,2.41187809,3956.0,3954.9,0.8303]
[1734319757015,2.41187809,3956.0,3955.0,0.8303]
[1734319757016,2.40273984,3956.0,3955.0,0.8303]
[1734319758519,2.08094009,3956.0,3955.0,0.8303]
[1734319758719,2.08094009,3956.0,3955.1,0.8303]
[1734319760783,2.08094009,3956.4,3955.2,2.52828]
[1734319761017,2.08094009,3956.4,3955.3,0.8303]
[1734319761183,3.57169281,3956.6,3955.3,0.8303]
[1734319761381,3.57169281,3956.6,3954.7,2.52858]
[1734319761382,1.10040261,3956.8,3955.5,0.8303]
[1734319761624,0.0561798,3956.8,3955.8,0.8303]
[1734319761805,0.62704007,3956.8,3955.8,0.8303]
[1734319762007,3.15435007,3956.8,3955.8,0.8303]
[1734319762226,2.5834898,3956.8,3955.8,0.8303]
[1734319763220,0.0561798,3956.8,3955.8,0.8303]
[1734319763422,2.52736,3956.7,3955.8,0.8303]
[1734319763711,4.60830009,3956.7,3955.8,0.8303]
[1734319764011,0.46644799,3956.6,3955.8,0.8303]
[1734319764955,2.52749,3956.5,3955.8,0.8303]
[1734319765468,0.46644799,3956.6,3955.8,0.8303]
[1734319765469,2.52757,3956.4,3955.8,0.8303]
[1734319765674,4.60832009,3956.7,3955.8,0.8303]
[1734319766556,2.08094009,3956.7,3955.8,0.8303]
[1734319766761,4.60830009,3956.7,3955.8,0.8303]
[1734319767755,0.46644799,3956.6,3955.8,0.8303]
[1734319768256,2.99388799,3956.6,3955.8,0.8303]
[1734319769458,0.46644799,3956.6,3955.8,0.8303]
[1734319769757,2.08094009,3956.7,3955.8,0.8303]
[1734319769758,4.60832009,3956.7,3955.8,0.8303]
[1734319770781,0.0561798,3956.8,3955.9,0.8153]
[1734319771086,0.0561798,3956.8,3956.0,0.8153]
[1734319772364,0.0561798,3956.8,3956.0,2.52779]
[1734319772538,0.0561798,3956.8,3956.1,0.7517]
[1734319772741,0.0561798,3956.8,3956.4,2.52748]
[1734319772931,0.0561798,3956.8,3956.6,0.7517]
[1734319775734,0.0561798,3956.8,3956.7,2.52735]
[1734319775931,0.0561798,3956.8,3956.7,3.6438487]
[1734319778946,0.0561798,3956.8,3956.7,1.1164987]
[1734319780948,0.0561798,3956.8,3956.7,3.6438487]
[1734319781170,0.0561798,3956.8,3956.7,3.94860507]
[1734319783046,0.0561798,3956.8,3956.7,1.42125507]
[1734319783461,0.0561798,3956.8,3956.7,0.798]
[1734319788291,0.0561798,3956.8,3956.7,1.1164987]
[1734319788502,0.0561798,3956.8,3956.7,1.42125507]
[1734319788705,0.0561798,3956.8,3956.7,3.94860507]
[1734319798800,0.0561798,3956.8,3956.7,4.81907139]
[1734319799003,0.0561798,3956.8,3956.7,3.94860507]
[1734319800799,0.0561798,3956.8,3956.7,3.6438487]
[1734319803019,9.8e-06,3956.8,3956.7,3.6438487]
[1734319803249,9.8e-06,3956.8,3956.7,3.94860507]
[1734319803542,9.8e-06,3956.8,3956.7,4.81969222]
[1734319803845,9.8e-06,3956.8,3956.7,4.81987416]
[1734319804043,9.8e-06,3956.8,3956.7,6.12677028]
[1734319804715,9.8e-06,3956.8,3956.7,7.18106821]
[1734319805352,9.8e-06,3956.8,3956.7,9.45095333]
[1734319805642,9.8e-06,3956.8,3956.7,7.86950643]
[1734319806223,9.8e-06,3956.8,3956.7,6.12677028]
[1734319806428,9.8e-06,3956.8,3956.7,9.45088393]
[1734319806624,9.8e-06,3956.8,3956.7,7.86982064]
[1734319807956,9.8e-06,3956.8,3956.7,7.87111801]
[1734319808530,9.8e-06,3956.8,3956.7,9.38911801]
[1734319810230,9.8e-06,3956.8,3956.7,11.49774394]
[1734319811460,0.7983,3958.4,3956.7,11.22690042]
[1734319811616,0.7983,3958.4,3957.4,0.7864]
[1734319811949,0.7628,3959.3,3958.0,0.7864]
[1734319812154,3.2885,3959.3,3958.2,2.52636]
[1734319812320,3.2885,3959.3,3958.0,3.31292]
[1734319812714,0.7939,3959.2,3958.0,3.31292]
[1734319812926,0.33196,3959.1,3958.0,3.31292]
[1734319813154,0.33196,3959.1,3958.0,0.7864]
[1734319813338,0.7939,3958.7,3957.6,2.52674]
[1734319813758,0.7939,3958.7,3957.7,0.87219197]
[1734319813933,0.7939,3958.7,3957.5,1.8683936]
[1734319814123,0.7939,3958.7,3957.6,2.180399]
[1734319814319,0.7939,3958.7,3957.5,0.8138]
[1734319814623,0.7939,3958.7,3957.1,1.58189041]
[1734319814624,0.829,3958.5,3957.4,2.5269]
[1734319815455,0.829,3958.5,3957.1,1.8444936]
[1734319815658,0.829,3958.5,3957.6,2.52677]
[1734319816370,0.829,3958.5,3957.4,1.0545936]
[1734319816576,0.829,3958.5,3957.5,2.52681]
[1734319816788,1.164509,3958.5,3957.6,0.87294494]
[1734319817554,1.164509,3958.5,3957.6,3.39972494]
[1734319817754,0.829,3958.5,3957.7,1.66114494]
[1734319817962,0.829,3958.5,3957.7,0.7882]
[1734319818135,0.829,3958.5,3957.7,3.31489]
[1734319818334,0.829,3958.5,3957.8,0.87337631]
[1734319819372,0.829,3958.5,3958.0,2.52651]
[1734319820760,0.7535,3959.3,3958.4,2.52625]
[1734319822135,0.7535,3959.3,3958.5,2.5262]
[1734319822360,0.7535,3959.3,3958.6,2.52612]
[1734319822722,0.7535,3959.3,3958.7,2.52607]
[1734319824619,0.7535,3959.3,3958.8,2.52599]
[1734319824926,0.7535,3959.3,3958.9,2.52594]
[1734319825524,0.7844,3959.8,3959.1,2.52582]
[1734319826002,0.7844,3959.8,3959.2,2.52574]
[1734319827630,0.7844,3959.8,3958.9,3.30303]
[1734319828766,0.7844,3959.8,3958.7,2.52608]
[1734319829064,0.7844,3959.8,3958.8,2.526]
[1734319829837,0.7844,3959.8,3958.9,2.52593]
[1734319830175,0.7844,3959.8,3958.6,3.6713387]
[1734319830371,0.7844,3959.8,3958.7,2.17849202]
[1734319830573,0.7844,3959.8,3958.7,2.8445787]
[1734319830736,0.7844,3959.8,3959.0,2.52585]
[1734319831370,0.7844,3959.8,3958.8,2.52601]
[1734319831575,0.7968,3960.5,3959.3,3.35408]
[1734319831765,0.7968,3960.4,3959.3,3.35408]
[1734319832544,0.7968,3960.4,3959.3,0.8284]
[1734319832741,0.7968,3960.4,3959.4,2.52562]
[1734319833340,0.7968,3960.4,3959.4,2.8441187]
[1734319833548,0.7968,3960.4,3959.5,0.3184987]
[1734319835575,0.7968,3960.3,3959.3,0.3184987]
[1734319835776,0.7968,3960.3,3959.4,0.3184987]
[1734319838170,0.7968,3960.3,3959.7,2.52543]
[1734319838375,0.7968,3960.3,3959.8,2.8438687]
[1734319839094,0.7968,3960.3,3959.9,2.60413185]
[1734319839457,0.7968,3960.3,3960.0,0.3184987]
[1734319840100,0.754,3960.6,3960.0,0.62325507]
[1734319840312,0.754,3960.6,3960.1,0.30475637]
[1734319840521,0.754,3960.6,3960.2,0.3184987]
[1734319840880,0.754,3960.6,3960.2,0.62325507]
[1734319841108,0.754,3960.6,3960.2,0.70211692]
[1734319842978,0.754,3960.6,3960.3,0.18824846]
[1734319843338,0.754,3960.6,3960.4,0.20503355]
[1734319843476,0.754,3960.6,3960.5,0.07886185]
[1734319843839,0.1625327,3960.7,3960.5,0.39736055]
[1734319843980,0.1625327,3960.7,3960.6,1.01646782]
[1734319844178,0.1625327,3960.7,3960.6,3.54132782]
[1734319844629,0.1625327,3960.7,3960.6,4.32872782]
[1734319846377,0.1625327,3960.7,3960.6,5.84272782]
[1734319847030,0.1625327,3960.7,3960.6,6.71174419]
[1734319847239,0.1625327,3960.7,3960.6,5.84272782]
[1734319847541,2.7e-06,3960.7,3960.6,9.3684338]
[1734319848055,2.7e-06,3960.7,3960.6,10.921421]
[1734319848332,0.7501,3962.4,3960.9,1.514]
[1734319848575,0.7501,3962.4,3961.8,3.31148]
[1734319848838,0.7501,3962.4,3961.8,0.7874]
[1734319849041,0.7501,3962.4,3961.9,0.20493125]
[1734319849335,0.7501,3962.4,3962.0,0.07881971]
[1734319849482,0.7501,3962.4,3962.1,0.07881971]
[1734319849682,0.7501,3962.4,3962.2,0.07881971]
[1734319849930,0.7501,3962.4,3961.7,0.12611154]
[1734319850138,0.7501,3962.4,3961.8,0.0788242]
[1734319850283,0.7501,3962.4,3961.9,0.0788242]
[1734319850481,0.7501,3962.4,3961.5,0.7874]
[1734319850482,0.7501,3962.4,3962.0,0.0788242]
[1734319850685,0.7501,3962.4,3962.1,0.0788242]
[1734319850916,0.7501,3962.4,3961.9,2.65014154]
[1734319850917,0.7873,3963.0,3962.2,0.0788242]
[1734319851141,0.7873,3963.0,3961.6,0.3184987]
[1734319851142,0.7873,3963.0,3962.3,0.0788242]
[1734319851305,0.7873,3962.8,3962.4,0.0788242]
[1734319851504,0.7873,3962.8,3962.5,0.0788242]
[1734319851799,0.7873,3962.8,3961.6,2.8426687]
[1734319851800,0.7873,3962.8,3961.9,0.12611154]
[1734319852004,0.7873,3962.8,3961.6,2.8426687]
[1734319852005,0.7873,3962.8,3962.0,0.20493547]
[1734319852205,0.7873,3962.8,3962.1,2.72883547]
[1734319852437,0.7873,3962.8,3962.2,0.20492279]
[1734319852588,0.7873,3962.8,3962.3,0.07881646]
[1734319852782,0.7873,3962.8,3962.4,0.07881646]
[1734319853016,0.7873,3962.8,3962.1,2.5239]
[1734319853017,0.7873,3962.8,3962.5,0.07881646]
[1734319853337,0.7873,3962.8,3962.6,0.20492279]
[1734319853536,0.7873,3962.8,3962.7,0.07881646]
[1734319854248,0.7873,3962.8,3962.7,0.20492279]
[1734319855146,0.7873,3962.8,3962.2,2.52382]
[1734319855320,0.7873,3962.8,3962.3,0.39229245]
[1734319855485,0.7873,3962.8,3962.4,0.20491698]
[1734319855692,0.7873,3962.8,3962.5,0.20491698]
[1734319855901,0.7873,3962.8,3962.6,0.20491698]
[1734319856148,0.7873,3962.8,3962.7,0.20491698]
[1734319858318,0.8137,3963.4,3962.7,0.52341568]
[1734319858619,0.8137,3963.4,3962.8,0.52341568]
[1734319858796,0.8137,3963.4,3962.9,0.20491698]
[1734319858994,0.8137,3963.4,3963.0,0.20491698]
[1734319859198,0.8137,3963.4,3963.1,0.20491698]
[1734319859397,0.8137,3963.4,3963.2,0.20491698]
[1734319859613,0.8137,3963.4,3962.8,0.3184987]
[1734319859614,0.8137,3963.4,3963.3,0.20491698]
[1734319860021,0.8137,3963.4,3963.3,0.07881422]
[1734319860341,0.8137,3963.4,3963.3,0.20490638]
[1734319860635,0.8137,3963.4,3963.3,0.07881422]
[1734319860810,0.8137,3963.4,3962.6,0.12610575]
[1734319860811,0.8216,3963.1,3962.6,0.12610575]
[1734319861149,0.8216,3963.1,3961.9,2.52402]
[1734319861434,0.8216,3963.1,3962.0,2.71155321]
[1734319861597,0.8216,3963.1,3962.1,0.19417722]
[1734319861942,0.8216,3963.1,3962.3,2.53033401]
[1734319862109,0.8216,3963.1,3962.4,2.92282327]
[1734319862306,0.8216,3963.1,3962.5,0.39910327]
[1734319862519,0.8216,3963.1,3962.6,0.39251926]
[1734319862712,0.8216,3963.1,3962.7,0.39251926]
[1734319863040,0.8216,3963.1,3962.8,0.20492605]
[1734319863243,0.8216,3963.1,3962.9,0.20492605]
[1734319863544,0.769,3963.9,3963.0,0.20492605]
[1734319863846,0.2540856,3964.7,3962.6,0.00658401]
[1734319863847,2.52286,3963.8,3963.1,0.20492605]
[1734319864047,0.8248,3963.7,3963.1,0.20492605]
[1734319864351,3.34777,3963.6,3963.2,0.20492605]
[1734319864552,0.8248,3963.5,3963.3,0.20492605]
[1734319864846,0.8248,3963.5,3963.4,0.20492605]
[1734319867222,0.8248,3963.5,3963.4,0.20490582]
[1734319867745,5.42876009,3963.5,3963.4,0.20490582]
[1734319868112,5.9716361,3963.5,3963.4,0.07880993]
[1734319868745,2.52334,3963.1,3962.3,0.00660783]
[1734319868927,3.31184,3963.0,3962.4,0.39293027]
[1734319869116,2.52341,3962.9,3962.5,0.39293027]
[1734319869311,2.52341,3962.9,3962.6,0.20493262]
[1734319869524,3.31196,3962.8,3962.7,0.20493262]
[1734319869926,3.85125001,3962.8,3962.7,0.20493262]
[1734319870667,0.53929001,3962.8,3961.8,0.3184987]
[1734319870827,2.08094009,3963.1,3962.0,0.00661136]
[1734319870828,0.7885,3962.5,3962.0,0.00661136]
[1734319871016,0.7885,3962.5,3962.1,0.39299826]
[1734319871232,0.7885,3962.5,3961.8,0.3184987]
[1734319871233,0.7885,3962.5,3962.2,0.39299826]
[1734319871432,0.7885,3962.5,3962.3,0.39299826]
[1734319871636,0.7885,3962.5,3962.4,0.20494661]
[1734319872241,3.59909401,3962.5,3962.4,0.20494661]
[1734319874637,3.59909401,3962.5,3962.4,0.07882562]
[1734319875069,3.31215,3962.5,3962.4,0.07882562]
[1734319875508,3.31215,3962.5,3962.4,0.20496078]
[1734319875874,3.31215,3962.5,3962.4,0.07882562]
[1734319877406,2.52374,3962.4,3961.6,0.12614077]
[1734319877606,0.7885,3962.5,3961.7,0.39350274]
[1734319877808,0.7885,3962.5,3961.8,0.39350274]
[1734319878107,0.7885,3962.5,3961.1,0.30475637]
[1734319878108,2.52373,3962.4,3961.9,0.39350274]
[1734319878404,2.52391,3962.1,3962.0,0.0788363]
[1734319879779,2.52391,3962.1,3961.1,0.30475637]
[1734319879780,2.52399,3962.0,3961.3,0.12614302]
[1734319880005,2.52399,3962.0,3961.4,0.39345946]
[1734319880205,2.52399,3962.0,3961.5,0.39345946]
[1734319880410,2.52399,3962.0,3961.6,0.20498535]
[1734319880607,2.52399,3962.0,3961.7,0.07884052]
[1734319880777,2.52399,3962.0,3961.8,0.07884052]
[1734319881113,2.52399,3962.0,3961.3,0.12614723]
[1734319881411,2.52399,3962.0,3961.4,0.39337774]
[1734319881580,2.52399,3962.0,3961.5,0.20498883]
[1734319881783,2.52399,3962.0,3961.1,0.30475637]
[1734319881784,0.756,3961.9,3961.6,0.0788416]
[1734319881970,0.756,3961.9,3961.7,0.0788416]
[1734319882170,0.756,3961.9,3961.8,0.0788416]
[1734319882506,0.756,3961.9,3961.4,0.12614627]
[1734319882692,0.756,3961.9,3961.5,0.07884197]
[1734319882895,3.16493909,3961.9,3961.6,0.07884197]
[1734319883101,3.16493909,3961.9,3960.8,1.1407987]
[1734319883102,0.7865,3961.8,3961.2,0.12614627]
[1734319883310,0.7865,3961.5,3961.3,0.26719346]
[1734319883477,0.7865,3961.5,3961.4,0.07884409]
[1734319883478,3.31079,3961.5,3961.4,0.07884409]
[1734319883676,0.7865,3961.5,3961.4,0.07884409]
[1734319884215,0.7865,3961.5,3960.9,0.12615055]
[1734319884376,0.7865,3961.5,3961.0,0.26714325]
[1734319884572,0.7865,3961.5,3961.1,0.26714325]
[1734319884786,0.7865,3961.5,3961.2,0.07884641]
[1734319884987,3.19850709,3961.5,3960.6,0.12615055]
[1734319885182,2.52436,3961.4,3960.7,0.39330642]
[1734319885412,2.52436,3961.4,3960.8,0.26715587]
[1734319885576,2.52436,3961.4,3960.9,0.07885008]
[1734319885778,2.52436,3961.4,3961.0,0.07885008]
[1734319885973,0.53918001,3961.3,3960.6,0.12615055]
[1734319886256,2.52443,3961.3,3960.7,0.26711112]
[1734319886415,2.5245,3961.2,3960.7,0.07885058]
[1734319886571,2.5245,3961.2,3960.4,0.3184987]
[1734319886776,2.5245,3961.2,3960.5,0.26709225]
[1734319887012,2.5245,3961.2,3960.6,0.07885666]
[1734319887312,5.41443009,3961.1,3960.4,0.3184987]
[1734319887523,5.41443009,3961.1,3960.5,0.07885908]
[1734319887681,5.41443009,3961.1,3960.4,0.3184987]
[1734319887886,5.41443009,3961.1,3960.5,0.07885924]
[1734319888208,5.41443009,3961.1,3960.4,0.3184987]
[1734319888409,0.8089,3961.1,3960.5,0.07885899]
[1734319888611,4.60529009,3961.5,3960.6,0.07885899]
[1734319888822,2.52439,3961.4,3960.4,0.62325507]
[1734319889121,2.52486,3960.6,3960.5,0.07885626]
[1734319889343,0.8089,3960.6,3959.8,0.769]
[1734319889487,0.8089,3960.6,3959.9,0.39318409]
[1734319889688,0.8089,3960.6,3960.0,0.26700711]
[1734319889925,0.8089,3960.9,3960.1,0.26700796]
[1734319890125,0.8089,3960.9,3959.8,3.29437]
[1734319890322,0.8089,3960.9,3959.9,0.71163685]
[1734319890645,0.8089,3960.9,3960.0,0.26696006]
[1734319890845,0.8089,3960.9,3960.1,0.26696006]
[1734319891063,0.8089,3960.9,3960.2,0.07886131]
[1734319891331,2.86964009,3961.9,3960.5,2.52492]
[1734319891512,2.86964009,3961.9,3960.7,0.807]
[1734319891717,2.52417,3961.7,3960.8,0.07886131]
[1734319892025,2.52417,3961.7,3960.7,0.807]
[1734319892240,2.52417,3961.7,3960.8,0.07885243]
[1734319892520,2.52417,3961.7,3960.7,0.807]
[1734319892721,2.52417,3961.7,3960.8,0.07885232]
[1734319892926,2.08094009,3961.5,3960.7,0.807]
[1734319893144,0.7887,3961.4,3960.8,0.07885205]
[1734319893285,0.7887,3961.4,3960.7,0.807]
[1734319893487,0.7887,3961.4,3960.8,0.0788518]
[1734319893488,2.08094009,3961.1,3960.8,0.0788518]
[1734319893691,2.08094009,3961.1,3960.4,0.755]
[1734319894026,2.08094009,3961.1,3960.5,0.07885531]
[1734319894211,2.08094009,3961.1,3960.6,0.07885603]
[1734319894415,0.7887,3961.4,3960.7,0.07885462]
[1734319894617,0.7887,3961.4,3960.4,0.755]